fUST/lending_fUST_20251228
["ID","MTS","AMOUNT","RATE_DAILY","PERIOD"]
[399922947,1766879343763,500.0,0.00013273,2]
[399922948,1766879346219,500.23722085,0.00013273,2]
[399922949,1766879348114,-245.07851299,0.00013404,2]
[399922950,1766879348146,-300.0,0.00013671,2]
[399922951,1766879348171,-111.84588389,0.00013672,2]
[399922952,1766879355103,-388.15411611,0.00013672,2]
[399922953,1766879355128,-471.38675893,0.00013672,2]
[399922954,1766879355155,-500.0,0.00013672,2]
[399922955,1766879355179,-500.0,0.00013672,2]
[399922956,1766879355203,-500.0,0.00013672,2]
[399922957,1766879355227,-500.0,0.00013672,2]
[399922958,1766879355251,-500.0,0.00013672,2]
[399922959,1766879355274,-500.0,0.00013672,2]
[399922960,1766879355299,-500.0,0.00013672,2]
[399922961,1766879355322,-500.0,0.00013672,2]
[399922962,1766879355344,-500.0,0.00013672,2]
[399922963,1766879355366,-500.0,0.00013672,2]
[399922964,1766879355389,-500.0,0.00013672,2]
[399922965,1766879355411,-500.0,0.00013672,2]
[399922966,1766879355434,-500.0,0.00013672,2]
[399922967,1766879355457,-500.0,0.00013672,2]
[399922968,1766879355479,-500.0,0.00013672,2]
[399922969,1766879355502,-500.0,0.00013672,2]
[399922970,1766879355524,-500.0,0.00013672,2]
[399922971,1766879355547,-500.0,0.00013672,2]
[399922972,1766879355570,-500.0,0.00013672,2]
[399922973,1766879355593,-417.77645415,0.00013672,2]
[399922974,1766879355616,-500.0,0.00013672,2]
[399922975,1766879355638,-500.0,0.00013672,2]
[399922976,1766879355660,-500.0,0.00013672,2]
[399922977,1766879355682,-500.0,0.00013672,2]
[399922978,1766879355703,-500.0,0.00013672,2]
[399922979,1766879355726,-500.0,0.00013672,2]
[399922980,1766879355748,-500.0,0.00013672,2]
[399922981,1766879355771,-500.0,0.00013672,2]
[399922982,1766879355794,-500.0,0.00013672,2]
[399922983,1766879355816,-500.0,0.00013672,2]
[399922984,1766879355839,-500.0,0.00013672,2]
[399922985,1766879355862,-250.0,0.00013672,2]
[399922986,1766879355885,-500.0,0.00013672,2]
[399922987,1766879355908,-500.0,0.00013672,2]
[399922988,1766879355930,-500.0,0.00013672,2]
[399922989,1766879355952,-500.0,0.00013672,2]
[399922990,1766879355974,-500.0,0.00013672,2]
[399922991,1766879355998,-500.0,0.00013672,2]
[399922992,1766879356022,-500.0,0.00013672,2]
[399922993,1766879356044,-500.0,0.00013672,2]
[399922994,1766879356066,-500.0,0.00013672,2]
[399922995,1766879356089,-500.0,0.00013672,2]
[399922996,1766879356112,-500.0,0.00013672,2]
[399922997,1766879356134,-500.0,0.00013672,2]
[399922998,1766879356156,-500.0,0.00013672,2]
[399922999,1766879356178,-500.0,0.00013672,2]
[399923000,1766879356200,-500.0,0.00013672,2]
[399923001,1766879356222,-500.0,0.00013672,2]
[399923002,1766879356243,-300.0,0.00013673,2]
[399923003,1766879356264,-500.0,0.00013699,2]
[399923004,1766879356284,-158.24212442,0.00013699,2]
[399923005,1766879356304,-435.97231519,0.00013699,2]
[399923006,1766879357425,774.72193698,0.00013404,2]
[399923007,1766879358089,-64.02768481,0.00013699,2]
[399923008,1766879358110,-500.0,0.00013699,2]
[399923009,1766879358130,-500.0,0.00013699,2]
[399923010,1766879358151,-500.0,0.00013699,2]
[399923011,1766879358171,-500.19853868,0.00013699,2]
[399923012,1766879358190,-500.76279856,0.00013699,2]
[399923013,1766879358210,-500.0,0.00013699,2]
[399923014,1766879358230,-534.57319666,0.00013699,2]
[399923015,1766879358250,-524.52854709,0.00013699,2]
[399923016,1766879358270,-500.21213035,0.00013699,2]
[399923017,1766879358290,-500.0,0.00013699,2]
[399923018,1766879358310,-500.0,0.00013699,2]
[399923019,1766879358330,-267.06421106,0.00013699,2]
[399923020,1766879358350,-500.0,0.00013699,2]
[399923021,1766879358369,-500.0,0.00013699,2]
[399923022,1766879358388,-500.0,0.00013699,2]
[399923023,1766879358407,-500.40982816,0.00013699,2]
[399923024,1766879358426,-500.0,0.00013699,2]
[399923025,1766879358446,-500.0,0.00013699,2]
[399923026,1766879358465,-500.23692856,0.00013699,2]
[399923027,1766879358484,-500.0,0.00013699,2]
[399923028,1766879358504,-159.68076014,0.00013699,2]
[399923029,1766879358525,-177.9953402,0.00013699,2]
[399923030,1766879358544,-500.0,0.00013699,2]
[399923031,1766879358564,-500.0,0.00013699,2]
[399923032,1766879358584,-307.44536568,0.00013699,2]
[399923033,1766879358603,-315.44517682,0.00013699,2]
[399923034,1766879362701,150.0,6.842e-05,2]
[399923035,1766879363158,150.0,7.168e-05,2]
[399923036,1766879363610,150.0,7.494e-05,2]
[399923037,1766879364065,150.0,7.82e-05,2]
[399923038,1766879364505,150.0,8.146e-05,2]
[399923039,1766879364973,150.0,8.471e-05,2]
[399923040,1766879365429,150.0,8.797e-05,2]
[399923041,1766879368122,500.0,0.00013273,2]
[399923042,1766879370110,-5000.0,0.00013562,2]
[399923043,1766879370135,-163.48741766,0.00013671,2]
[399923044,1766879370159,-500.0,0.00013671,2]
[399923045,1766879370189,-500.0,0.00013671,2]
[399923046,1766879370214,-500.0,0.00013671,2]
[399923047,1766879370243,-500.0,0.00013671,2]
[399923048,1766879370269,-500.0,0.00013671,2]
[399923049,1766879370293,-63.73533198,0.00013671,2]
[399923050,1766879370343,179.21774636,0.00013273,2]
[399923051,1766879370409,157.10569576,0.00013273,2]
[399923052,1766879370514,202.90378031,0.00013273,2]
[399923053,1766879370581,500.0,0.00013273,2]
[399923054,1766879370645,500.96341993,0.00013273,2]
[399923055,1766879370732,500.0,0.00013273,2]
[399923056,1766879370912,500.91122184,0.00013273,2]
[399923057,1766879371164,500.0,0.00013273,2]
[399923058,1766879397958,-5000.0,0.00013534,2]
[399923059,1766879405011,0.01,0.00013257,2]
[399923060,1766879405077,9774.15221231,0.00013257,2]
[399923061,1766879405476,225.85778769,0.00013257,2]
[399923062,1766879405541,4774.14221231,0.00013257,2]
[399923063,1766879405692,5000.0,0.00013257,2]
[399923064,1766879406098,225.86778769,0.00013257,2]
[399923065,1766879406163,4774.13221231,0.00013257,2]
[399923066,1766879406450,5000.0,0.00013257,2]
[399923067,1766879407049,225.87778769,0.00013273,2]
[399923068,1766879407128,274.12221231,0.00013273,2]
[399923069,1766879407277,500.0,0.00013273,2]
[399923070,1766879407510,500.0,0.00013273,2]
[399923071,1766879412371,500.0,0.00013273,2]
[399923072,1766879429809,150.0,6.829e-05,2]
[399923073,1766879430482,150.0,7.155e-05,2]
[399923074,1766879430897,150.0,7.48e-05,2]
[399923075,1766879431353,150.0,7.805e-05,2]
[399923129,1766879432483,-618.13832791,0.00013534,2]
[399923132,1766879432508,-4381.86167209,0.00013534,2]
[399923134,1766879432518,-1200.0,0.0001367,2]
[399923135,1766879432529,-436.26466802,0.00013671,2]
[399923137,1766879432539,-500.0,0.00013671,2]
[399923138,1766879432549,-566.77764541,0.00013671,2]
[399923140,1766879432559,-307.20006418,0.00013671,2]
[399923141,1766879432585,-615.0,0.00013671,2]
[399923142,1766879432595,-163.48675578,0.00013673,2]
[399923143,1766879432607,-136.51324422,0.00013673,2]
[399923145,1766879432618,-300.0,0.00013698,2]
[399923146,1766879432628,-8.46350023,0.00013698,2]
[399923147,1766879432645,-291.53649977,0.00013698,2]
[399923148,1766879432655,-159.85746228,0.00013699,2]
[399923158,1766879438854,-5000.0,0.00013562,2]
[399923159,1766879438864,-500.0,0.00013698,2]
[399923160,1766879438873,-200.2196742,0.00013698,2]
[399923161,1766879438883,-245.55933417,0.00013698,2]
[399923162,1766879438893,-24.6973609,0.00013699,2]
[399923163,1766879438902,-523.43161198,0.00013699,2]
[399923164,1766879438913,-500.0,0.00013699,2]
[399923165,1766879438922,-500.0,0.00013699,2]
[399923166,1766879438932,-500.0,0.00013699,2]
[399923167,1766879438942,-500.5438368,0.00013699,2]
[399923168,1766879438951,-518.5501948,0.00013699,2]
[399923169,1766879438960,-339.94937714,0.00013699,2]
[399923170,1766879438970,-166.08941585,0.00013699,2]
[399923171,1766879438979,-500.96147603,0.00013699,2]
[399923172,1766879438989,-500.0,0.00013699,2]
[399923173,1766879438999,-500.80737213,0.00013699,2]
[399923174,1766879439008,-500.0,0.00013699,2]
[399923175,1766879439017,-514.17282938,0.00013699,2]
[399923176,1766879439027,-500.0,0.00013699,2]
[399923177,1766879439036,-455.70827414,0.00013699,2]
[399923178,1766879439045,-500.30541626,0.00013699,2]
[399923179,1766879439055,-65.69776445,0.00013699,2]
[399923183,1766879440879,-3e-08,0.00013699,2]
[399923184,1766879440892,-107.59454553,0.00013699,2]
[399923185,1766879440903,-161.65283747,0.00013699,2]
[399923200,1766879447226,-338.34716253,0.00013699,2]
[399923201,1766879447236,-500.0,0.00013699,2]
[399923202,1766879447246,-500.77567295,0.00013699,2]
[399923203,1766879447256,-500.25781824,0.00013699,2]
[399923204,1766879447265,-500.0,0.00013699,2]
[399923205,1766879447275,-501.06208299,0.00013699,2]
[399923206,1766879447284,-500.65201175,0.00013699,2]
[399923207,1766879447294,-500.20372006,0.00013699,2]
[399923208,1766879447304,-501.69804638,0.00013699,2]
[399923209,1766879447313,-500.0,0.00013699,2]
[399923210,1766879447323,-500.86759667,0.00013699,2]
[399923211,1766879447332,-599.35395839,0.00013699,2]
[399923212,1766879447341,-500.0,0.00013699,2]
[399923213,1766879447351,-523.8766182,0.00013699,2]
[399923214,1766879447360,-223.48752148,0.00013699,2]
[399923215,1766879447370,-500.22641823,0.00013699,2]
[399923216,1766879447379,-159.34794674,0.00013699,2]
[399923217,1766879447389,-636.42398366,0.00013699,2]
[399923218,1766879447398,-333.64434173,0.00013699,2]
[399923219,1766879447422,-166.35565827,0.00013699,2]
[399923220,1766879447431,-11.92200299,0.00013699,2]
[399923221,1766879582288,300.0,0.00013272,2]
[399923222,1766879592403,1200.0,0.00013272,2]
[399923223,1766879624766,150.0,6.845e-05,2]
[399923224,1766879625496,150.0,7.171e-05,2]
[399923225,1766879642663,300.0,0.00013272,2]
[399923226,1766879642957,300.0,0.00013272,2]
[399923227,1766879665025,5000.0,0.00013273,2]
[399923228,1766879672107,500.0,0.00013272,2]
[399923229,1766879672181,500.0,0.00013272,2]
[399923230,1766879672254,286.99466071,0.00013272,2]
[399923231,1766879672323,500.0,0.00013272,2]
[399923232,1766879672432,500.0,0.00013272,2]
[399923233,1766879672802,313.01533929,0.00013272,2]
[399923234,1766879673057,186.98466071,0.00013272,2]
[399923235,1766879673131,-500.0,0.00013273,2]
[399923236,1766879673193,-500.0,0.00013273,2]
[399923237,1766879673260,-500.0,0.00013273,2]
[399923238,1766879673325,-500.0,0.00013273,2]
[399923239,1766879673390,-500.0,0.00013273,2]
[399923240,1766879673450,-158.314159,0.00013273,2]
[399923241,1766879673513,-500.0,0.00013273,2]
[399923242,1766879673578,-500.0,0.00013273,2]
[399923243,1766879673649,-500.0,0.00013273,2]
[399923244,1766879673712,-500.0,0.00013273,2]
[399923245,1766879673778,-183.381682,0.00013273,2]
[399923246,1766879673957,500.0,0.00013272,2]
[399923247,1766879674039,-316.618318,0.00013273,2]
[399923248,1766879674103,-500.0,0.00013273,2]
[399923249,1766879674168,-500.0,0.00013273,2]
[399923250,1766879674239,-500.0,0.00013273,2]
[399923251,1766879674304,-500.0,0.00013273,2]
[399923252,1766879674368,-386.52222288,0.00013273,2]
[399923253,1766879674433,-500.0,0.00013273,2]
[399923254,1766879674506,488.57639099,0.00013272,2]
[399923255,1766879674600,500.0,0.00013272,2]
[399923256,1766879675149,500.0,0.00013272,2]
[399923257,1766879675217,500.0,0.00013272,2]
[399923258,1766879675293,500.0,0.00013272,2]
[399923259,1766879675417,500.0,0.00013272,2]
[399923260,1766879675485,500.0,0.00013272,2]
[399923261,1766879675554,500.0,0.00013272,2]
[399923262,1766879675694,500.0,0.00013272,2]
[399923263,1766879675774,500.0,0.00013272,2]
[399923264,1766879675897,500.0,0.00013272,2]
[399923265,1766879676046,500.0,0.00013272,2]
[399923266,1766879676120,452.71256793,0.00013272,2]
[399923267,1766879676184,402.16404911,0.00013272,2]
[399923268,1766879676261,500.0,0.00013272,2]
[399923269,1766879677205,-5681.91174538,0.00013273,2]
[399923270,1766879677308,-10000.01,0.00013273,2]
[399923271,1766879677402,-10000.01,0.00013273,2]
[399923272,1766879677458,-2218.12711829,0.00013273,2]
[399923273,1766879689659,150.0,7.018e-05,2]
[399923274,1766879690096,150.0,7.352e-05,2]
[399923275,1766879690525,150.0,7.686e-05,2]
[399923276,1766879690957,150.0,8.02e-05,2]
[399923277,1766879691400,150.0,8.354e-05,2]
[399923278,1766879691853,150.0,8.689e-05,2]
[399923279,1766879692315,150.0,9.023e-05,2]
[399923280,1766879692712,150.0,9.357e-05,2]
[399923281,1766879722662,354.83869408,0.00013272,2]
[399923282,1766879762321,300.0,0.00013272,2]
[399923283,1766879822623,300.0,0.00013272,2]
[399923284,1766879872628,5000.0,0.00013273,2]
[399923285,1766879882438,300.0,0.00013272,2]
[399923286,1766879896278,2545.17130592,0.00013273,2]
[399923287,1766879896356,2454.82869408,0.00013273,2]
[399923288,1766879901575,-500.0,0.00013273,2]
[399923289,1766879901655,-500.0,0.00013273,2]
[399923290,1766879901734,-500.0,0.00013273,2]
[399923291,1766879901803,-500.0,0.00013273,2]
[399923292,1766879901887,-500.0,0.00013273,2]
[399923293,1766879901965,-500.0,0.00013273,2]
[399923294,1766879902034,-500.0,0.00013273,2]
[399923295,1766879902116,-500.0,0.00013273,2]
[399923296,1766879902196,-500.0,0.00013273,2]
[399923297,1766879902279,-500.0,0.00013273,2]
[399923298,1766879902926,-500.0,0.00013273,2]
[399923299,1766879902997,-500.0,0.00013273,2]
[399923300,1766879903067,-500.0,0.00013273,2]
[399923301,1766879903142,-500.0,0.00013273,2]
[399923302,1766879903216,-500.0,0.00013273,2]
[399923303,1766879903304,-500.0,0.00013273,2]
[399923304,1766879903391,-500.0,0.00013273,2]
[399923305,1766879908936,195.59,0.0001,2]
[399923306,1766879911661,195.59,0.000102,2]
[399923307,1766879920371,2608.83,0.00013473,2]
[399923308,1766879920440,2391.17,0.00013473,2]
[399923309,1766879932010,-253.63886337,0.00013473,2]
[399923310,1766879943356,500.0,0.00013273,2]
[399923311,1766879943676,500.0,0.00013273,2]
[399923312,1766879943757,500.0,0.00013273,2]
[399923313,1766879944312,5000.0,0.00013528,2]
[399923314,1766879946853,500.0,0.00013273,2]
[399923315,1766879948058,500.0,0.00013273,2]
[399923316,1766879948306,500.0,0.00013273,2]
[399923317,1766879948906,150.0,7.166e-05,2]
[399923318,1766879949378,150.0,7.507e-05,2]
[399923319,1766879949833,179.6,7.849e-05,2]
[399923320,1766879950274,239.47,8.19e-05,2]
[399923321,1766879950727,299.34,8.531e-05,2]
[399923322,1766879951171,359.2,8.872e-05,2]
[399923323,1766879951601,115.12227326,9.213e-05,2]
[399923324,1766879951668,303.94772674,9.213e-05,2]
[399923325,1766879951742,183.77,0.00012329,2]
[399923326,1766879952078,478.94,9.555e-05,2]
[399923327,1766879952550,538.81,9.896e-05,2]
[399923328,1766879952979,598.67,0.00010237,2]
[399923329,1766879957869,999.0,0.0001271,2]
[399923330,1766879967739,5000.0,0.00013528,2]
[399923331,1766879968843,500.0,0.00013273,2]
[399923332,1766879969132,500.0,0.00013273,2]
[399923333,1766879969247,500.0,0.00013273,2]
[399923334,1766879969416,396.87227326,0.00013273,2]
[399923335,1766879969483,103.12772674,0.00013273,2]
[399923336,1766879972338,153.14,0.00012329,2]
[399923337,1766879982716,765.74,0.00012329,2]
[399923338,1766879992808,-5000.0,0.00013536,2]
[399923339,1766880015808,5000.0,0.00013273,2]
[399923340,1766880025183,150.0,6.863e-05,2]
[399923341,1766880025665,150.0,7.19e-05,2]
[399923342,1766880026054,150.0,7.517e-05,2]
[399923343,1766880026510,158.95,7.844e-05,2]
[399923344,1766880026961,198.69,8.171e-05,2]
[399923345,1766880027399,238.43,8.497e-05,2]
[399923346,1766880027866,278.16,8.824e-05,2]
[399923347,1766880028348,317.9,9.151e-05,2]
[399923348,1766880028780,357.64,9.478e-05,2]
[399923349,1766880029234,397.38,9.805e-05,2]
[399923350,1766880039938,2602.86,0.00013273,2]
[399923351,1766880040011,2397.14,0.00013273,2]
[399923352,1766880054930,150.5,0.00013,2]
[399923353,1766880063592,5000.0,0.00013273,2]
[399923354,1766880087367,2452.37,0.00013273,2]
[399923355,1766880087441,2547.63,0.00013273,2]
[399923356,1766880095333,150.0,7.03e-05,2]
[399923357,1766880095790,150.0,7.365e-05,2]
[399923358,1766880096255,150.0,7.7e-05,2]
[399923359,1766880096647,155.07,8.034e-05,2]
[399923360,1766880097091,193.84,8.369e-05,2]
[399923361,1766880097533,232.6,8.704e-05,2]
[399923362,1766880097960,271.37,9.039e-05,2]
[399923363,1766880098467,310.14,9.373e-05,2]
[399923364,1766880098937,348.9,9.708e-05,2]
[399923365,1766880099346,387.67,0.00010043,2]
[399923366,1766880110975,5000.0,0.00013273,2]
[399923367,1766880122588,102.79,0.00013272,2]
[399923368,1766880122685,197.21,0.00013272,2]
[399923369,1766880135236,5000.0,0.00013273,2]
[399923370,1766880159681,4802.8,0.00013273,2]
[399923371,1766880159750,197.2,0.00013273,2]
[399923372,1766880164999,150.0,6.604e-05,2]
[399923373,1766880165444,150.0,6.919e-05,2]
[399923374,1766880165888,150.0,7.233e-05,2]
[399923375,1766880166334,150.0,7.548e-05,2]
[399923376,1766880166785,150.0,7.862e-05,2]
[399923377,1766880167213,150.0,8.177e-05,2]
[399923378,1766880167638,172.26,8.491e-05,2]
[399923379,1766880168109,196.87,8.806e-05,2]
[399923380,1766880168555,221.48,9.12e-05,2]
[399923381,1766880169027,246.09,9.435e-05,2]
[399923382,1766880183054,300.0,0.00013272,2]
[399923383,1766880183323,5000.0,0.00013273,2]
[399923384,1766880207385,2766.11,0.00013273,2]
[399923385,1766880207465,2233.89,0.00013273,2]
[399923386,1766880230784,5000.0,0.00013273,2]
[399923387,1766880234284,150.0,6.771e-05,2]
[399923388,1766880234731,150.0,7.094e-05,2]
[399923389,1766880235175,150.0,7.416e-05,2]
[399923390,1766880235614,150.0,7.739e-05,2]
[399923391,1766880236353,150.0,8.061e-05,2]
[399923392,1766880236511,150.0,8.384e-05,2]
[399923393,1766880236929,150.0,8.706e-05,2]
[399923394,1766880237359,159.99,9.028e-05,2]
[399923395,1766880237824,179.99,9.351e-05,2]
[399923396,1766880238265,181.39510892,9.673e-05,2]
[399923397,1766880242377,300.0,0.00013272,2]
[399923398,1766880255578,894.74489108,0.00013273,2]
[399923399,1766880255642,4105.25510892,0.00013273,2]
[399923401,1766880279135,5000.0,0.00013273,2]
[399923403,1766880302584,150.0,8.745e-05,2]
[399923404,1766880302724,300.0,0.00013272,2]
[399923405,1766880302932,444.75489108,0.00013273,2]
[399923406,1766880303002,4555.24510892,0.00013273,2]
[399923407,1766880303101,150.0,9.162e-05,2]
[399923408,1766880303498,150.0,9.578e-05,2]
[399923409,1766880303919,150.0,9.994e-05,2]
[399923410,1766880304377,150.0,0.00010411,2]
[399923411,1766880304869,150.0,0.00010827,2]
[399923412,1766880304949,300.0,0.00013272,2]
[399923413,1766880305318,150.0,0.00011244,2]
[399923414,1766880305753,150.0,0.0001166,2]
[399923415,1766880305870,1200.0,0.00013272,2]
[399923416,1766880326715,2584.84505338,0.00013273,2]
[399923417,1766880362553,300.0,0.00013272,2]
[399923418,1766880369833,9.9198377,0.00012794,2]
[399923419,1766880369898,10000.01,0.00012794,2]
[399923420,1766880369963,10000.01,0.00012794,2]
[399923421,1766880370028,5073.2822968,0.00012794,2]
[399923439,1766880396615,2100.0,0.00013273,2]
[399923440,1766880406116,-500.0,0.00013273,2]
[399923441,1766880406138,-189.56208666,0.00013273,2]
[399923442,1766880422343,300.0,0.00013272,2]
[399923443,1766880434066,150.0,8.627e-05,2]
[399923444,1766880434109,-310.43791334,0.00013273,2]
[399923445,1766880434130,-268.78643114,0.00013273,2]
[399923446,1766880434494,150.0,9.037e-05,2]
[399923447,1766880444231,2226.7277032,0.00013273,2]
[399923448,1766880444300,2773.2722968,0.00013273,2]
[399923449,1766880448107,-197.86945684,0.00013273,2]
[399923450,1766880482537,300.0,0.00013272,2]
[399923451,1766880483782,161.0,8.427e-05,2]
[399923452,1766880484048,161.0,8.427e-05,2]
[399923453,1766880499256,150.0,8.996e-05,2]
[399923454,1766880499693,150.0,9.425e-05,2]
[399923455,1766880500154,150.0,9.853e-05,2]
[399923456,1766880500599,150.0,0.00010282,2]
[399923457,1766880501213,150.0,0.0001071,2]
[399923458,1766880501583,163.43,0.00011138,2]
[399923459,1766880502033,190.67,0.00011567,2]
[399923460,1766880502487,217.91,0.00011995,2]
[399923461,1766880502929,245.15,0.00012424,2]
[399923462,1766880503434,272.39,0.00012852,2]
[399923463,1766880513874,4765.1877032,0.00013273,2]
[399923464,1766880513945,234.8122968,0.00013273,2]
[399923465,1766880542428,300.0,0.00013272,2]
[399923466,1766880550098,-33.34411202,0.00013273,2]
[399923467,1766880550121,-500.0,0.00013273,2]
[399923468,1766880550142,-500.60194921,0.00013273,2]
[399923469,1766880550162,-500.0,0.00013273,2]
[399923470,1766880550183,-500.0,0.00013273,2]
[399923471,1766880550202,-500.0,0.00013273,2]
[399923472,1766880550222,-500.0,0.00013273,2]
[399923473,1766880550242,-500.0,0.00013273,2]
[399923474,1766880550262,-501.15260328,0.00013273,2]
[399923475,1766880550281,-500.0,0.00013273,2]
[399923476,1766880550302,-500.0,0.00013273,2]
[399923477,1766880550322,-500.0,0.00013273,2]
[399923478,1766880550342,-500.0,0.00013273,2]
[399923479,1766880550362,-500.0,0.00013273,2]
[399923480,1766880550382,-500.0,0.00013273,2]
[399923481,1766880550403,-247.91676213,0.00013273,2]
[399923482,1766880552087,-252.08323787,0.00013273,2]
[399923483,1766880552107,-500.0,0.00013273,2]
[399923484,1766880552127,-500.0,0.00013273,2]
[399923485,1766880552148,-500.0,0.00013273,2]
[399923486,1766880552168,-500.0,0.00013273,2]
[399923487,1766880552188,-500.0,0.00013273,2]
[399923488,1766880552208,-500.0,0.00013273,2]
[399923489,1766880552228,-500.0,0.00013273,2]
[399923490,1766880552247,-500.0,0.00013273,2]
[399923491,1766880552267,-500.0,0.00013273,2]
[399923492,1766880552287,-436.84043735,0.00013273,2]
[399923493,1766880552305,-500.0,0.00013273,2]
[399923494,1766880552326,-500.0,0.00013273,2]
[399923495,1766880552345,-500.0,0.00013273,2]
[399923496,1766880552366,-355.87169972,0.00013273,2]
[399923497,1766880569087,-144.12830028,0.00013273,2]
[399923498,1766880569114,-253.67472554,0.00013354,2]
[399923499,1766880569395,150.0,9.832e-05,2]
[399923500,1766880569825,150.0,0.000103,2]
[399923501,1766880570261,150.0,0.00010768,2]
[399923502,1766880570849,150.0,0.00011236,2]
[399923503,1766880571286,150.0,0.00011704,2]
[399923504,1766880571387,500.0,0.00013273,2]
[399923505,1766880571492,472.82193112,0.00013273,2]
[399923506,1766880572164,150.0,0.00012173,2]
[399923507,1766880572610,150.0,0.00012641,2]
[399923508,1766880573049,168.18,0.00013109,2]
[399923509,1766880629463,180.84,0.0001,2]
[399923566,1766880631951,-27.17806888,0.00013273,2]
[399923568,1766880631962,-346.46292988,0.00013273,2]
[399923571,1766880631975,-153.53707012,0.00013273,2]
[399923573,1766880631984,-500.0,0.00013273,2]
[399923575,1766880631994,-500.0,0.00013273,2]
[399923577,1766880632004,-500.0,0.00013273,2]
[399923579,1766880632014,-500.0,0.00013273,2]
[399923581,1766880632023,-500.0,0.00013273,2]
[399923583,1766880632033,-500.0,0.00013273,2]
[399923585,1766880632043,-608.0,0.00013273,2]
[399923587,1766880632052,-189.2,0.00013577,2]
[399923588,1766880632061,-300.0,0.00013597,2]
[399923590,1766880632072,-1200.0,0.00013597,2]
[399923592,1766880632081,-500.0,0.00013598,2]
[399923594,1766880632090,-500.0,0.00013598,2]
[399923596,1766880632100,-249.59451902,0.00013598,2]
[399923598,1766880632110,-500.0,0.00013598,2]
[399923600,1766880632120,-500.0,0.00013598,2]
[399923602,1766880632129,-325.32032649,0.00013598,2]
[399923604,1766880632139,-500.0,0.00013598,2]
[399923606,1766880632149,-500.0,0.00013598,2]
[399923608,1766880632159,-500.0,0.00013598,2]
[399923610,1766880632169,-500.0,0.00013598,2]
[399923612,1766880632179,-500.0,0.00013598,2]
[399923614,1766880632189,-500.0,0.00013598,2]
[399923616,1766880632201,-500.0,0.00013598,2]
[399923618,1766880632211,-250.0,0.00013598,2]
[399923620,1766880632220,-29270.34600778,0.00013599,2]
[399923629,1766880632298,180.84,0.000102,2]
[399923655,1766880634404,180.84,0.000104,2]
[399923656,1766880637270,391.33867,0.00027,120]
[399923657,1766880637582,391.33867,0.000279,120]
[399923700,1766880638029,-500.0,0.00013597,2]
[399923702,1766880638039,-500.0,0.00013597,2]
[399923704,1766880638049,-500.0,0.00013597,2]
[399923706,1766880638058,-500.0,0.00013597,2]
[399923708,1766880638068,-500.0,0.00013597,2]
[399923710,1766880638077,-500.0,0.00013597,2]
[399923712,1766880638087,-395.43235964,0.00013597,2]
[399923714,1766880638098,-500.0,0.00013597,2]
[399923716,1766880638107,-337.54666102,0.00013597,2]